fUSD/lending_fUSD_20260625
["ID","MTS","AMOUNT","RATE_DAILY","PERIOD"]
[426436277,1782384640000,-1083.85357082,0.000288,2]
[426436275,1782384640000,-266.081572,0.00028356,7]
[426436276,1782384640000,-579.0,0.00028507,2]
[426436266,1782384640000,-1176.29201007,0.00027862,2]
[426436241,1782384640000,-15972.25,0.00027397,10]
[426436274,1782384640000,-179.601466,0.00028356,7]
[426436255,1782384640000,-1230.0,0.00027458,2]
[426436240,1782384640000,-8012.84,0.00027397,10]
[426436228,1782384640000,-853.09846238,0.0002702,2]
[426436238,1782384640000,-1500.0,0.00027397,2]
[426436210,1782384640000,-281.21387189,0.0002647,2]
[426436209,1782384640000,-310.91461457,0.0002647,2]
[426436208,1782384640000,-259.00349276,0.0002647,2]
[426436212,1782384640000,-709.71005667,0.0002647,2]
[426436211,1782384640000,-355.06228705,0.0002647,2]
[426436223,1782384640000,-473.47452134,0.0002647,2]
[426436222,1782384640000,-675.84226295,0.0002647,2]
[426436214,1782384640000,-365.43526887,0.0002647,2]
[426436217,1782384640000,-163.86654028,0.0002647,2]
[426436213,1782384640000,-352.79304983,0.0002647,2]
[426436215,1782384640000,-371.08699381,0.0002647,2]
[426436218,1782384640000,-515.56407804,0.0002647,2]
[426436221,1782384640000,-265.41337865,0.0002647,2]
[426436216,1782384640000,-333.58090939,0.0002647,2]
[426436250,1782384640000,-151.72,0.000274,7]
[426436220,1782384640000,-633.16886441,0.0002647,2]
[426436235,1782384640000,-844.80282869,0.00027031,2]
[426436272,1782384640000,-1920.0,0.00028291,10]
[426436230,1782384640000,-876.89484639,0.0002702,2]
[426436233,1782384640000,-846.79307061,0.0002702,2]
[426436237,1782384640000,-404.61644,0.00027265,2]
[426436231,1782384640000,-923.25474397,0.0002702,2]
[426436227,1782384640000,-892.34967038,0.0002702,2]
[426436229,1782384640000,-826.98477464,0.0002702,2]
[426436236,1782384640000,-1500.0,0.00027203,10]
[426436224,1782384640000,-172.61580819,0.00026804,3]
[426436232,1782384640000,-980.24334172,0.0002702,2]
[426436234,1782384640000,-852.05855154,0.00027031,2]
[426436249,1782384640000,-541.92678541,0.00027397,2]
[426436239,1782384640000,-300.0,0.00027397,2]
[426436225,1782384640000,-913.35299013,0.0002702,2]
[426436269,1782384640000,-1013.76339443,0.00027873,2]
[426436219,1782384640000,-185.09018159,0.0002647,2]
[426436268,1782384640000,-1022.47026185,0.00027873,2]
[426436313,1782384640000,-7480.99219661,0.000299,2]
[426436308,1782384640000,-7480.99219661,0.000299,2]
[426436316,1782384640000,-177.55,0.00029931,2]
[426436312,1782384640000,-7480.99219661,0.000299,2]
[426436318,1782384640000,-194.05,0.00029931,2]
[426436319,1782384640000,-263.34368756,0.0002998,2]
[426436317,1782384640000,-221.36,0.00029931,2]
[426436315,1782384640000,-7480.99219661,0.000299,2]
[426436322,1782384640000,-1200772.0,0.0003008,20]
[426436325,1782384640000,-152.2,0.00030381,2]
[426436321,1782384640000,-579.0,0.00030067,3]
[426436323,1782384640000,-208473.80352705,0.0003008,2]
[426436324,1782384640000,-152.2,0.00030156,7]
[426436333,1782384640000,-151.72,0.000306,7]
[426436332,1782384640000,-579.0,0.00030587,4]
[426436334,1782384640000,-187.98,0.00030718,7]
[426436327,1782384640000,-1277.0,0.00030458,2]
[426436270,1782384640000,-903.21130901,0.00027959,2]
[426436342,1782384640000,-1403.03175422,0.00031019,2]
[426436336,1782384640000,-152.2,0.00030831,7]
[426436339,1782384640000,-5589.66070683,0.00031007,2]
[426436340,1782384640000,-404.61644,0.00031007,2]
[426436341,1782384640000,-1364.9575398,0.00031019,2]
[426436320,1782384640000,-200.0,0.0003,2]
[426436337,1782384640000,-150.0,0.00030877,2]
[426436335,1782384640000,-152.22,0.00030718,7]
[426436329,1782384640000,-1230.0,0.00030458,2]
[426436331,1782384640000,-935.0,0.00030458,2]
[426436326,1782384640000,-3562.0,0.00030458,2]
[426436330,1782384640000,-216.0,0.00030458,2]
[426436328,1782384640000,-383.0,0.00030458,2]
[426436338,1782384640000,-1000.0,0.00031,7]
[426436314,1782384640000,-7480.99219661,0.000299,2]
[426436226,1782384640000,-919.98097676,0.0002702,2]
[426436309,1782384640000,-7480.99219661,0.000299,2]
[426436310,1782384640000,-7480.99219661,0.000299,2]
[426436271,1782384640000,-237.07370031,0.00028279,2]
[426436279,1782384640000,-350.0,0.00029,2]
[426436285,1782384640000,-579.0,0.00029027,2]
[426436283,1782384640000,-294.31234814,0.00029025,2]
[426436281,1782384640000,-544.55,0.00029,7]
[426436288,1782384640000,-1249.28953853,0.00029125,2]
[426436280,1782384640000,-500.0,0.00029,7]
[426436286,1782384640000,-1200772.0,0.0002912,20]
[426436291,1782384640000,-1227.65278494,0.00029125,2]
[426436292,1782384640000,-5589.66070683,0.00029136,2]
[426436289,1782384640000,-1194.33784733,0.00029125,2]
[426436290,1782384640000,-1157.7786845,0.00029125,2]
[426436282,1782384640000,-9250.42574942,0.00029025,2]
[426436287,1782384640000,-1278.69418618,0.00029125,2]
[426436284,1782384640000,-403.94251993,0.00029025,2]
[426436293,1782384640000,-404.61644,0.00029136,2]
[426436311,1782384640000,-7480.99219661,0.000299,2]
[426436307,1782384640000,-7480.99219661,0.000299,2]
[426436294,1782384640000,-151.72,0.000292,7]
[426436300,1782384640000,-7480.99219661,0.000299,2]
[426436303,1782384640000,-7480.99219661,0.000299,2]
[426436301,1782384640000,-7480.99219661,0.000299,2]
[426436299,1782384640000,-7480.99219661,0.000299,2]
[426436302,1782384640000,-7480.99219661,0.000299,2]
[426436296,1782384640000,-7480.99219667,0.000299,2]
[426436297,1782384640000,-7480.99219661,0.000299,2]
[426436295,1782384640000,-579.0,0.00029547,3]
[426436304,1782384640000,-7480.99219661,0.000299,2]
[426436306,1782384640000,-7480.99219661,0.000299,2]
[426436305,1782384640000,-7480.99219661,0.000299,2]
[426436298,1782384640000,-7480.99219661,0.000299,2]
[426436367,1782384641000,-750.0,0.00031479,7]
[426436386,1782384641000,-750.0,0.00031479,7]
[426436364,1782384641000,-750.0,0.00031479,7]
[426436365,1782384641000,-750.0,0.00031479,7]
[426436371,1782384641000,-750.0,0.00031479,7]
[426436366,1782384641000,-750.0,0.00031479,7]
[426436373,1782384641000,-750.0,0.00031479,7]
[426436368,1782384641000,-750.0,0.00031479,7]
[426436375,1782384641000,-750.0,0.00031479,7]
[426436381,1782384641000,-750.0,0.00031479,7]
[426436376,1782384641000,-750.0,0.00031479,7]
[426436378,1782384641000,-750.0,0.00031479,7]
[426436380,1782384641000,-750.0,0.00031479,7]
[426436384,1782384641000,-750.0,0.00031479,7]
[426436382,1782384641000,-750.0,0.00031479,7]
[426436377,1782384641000,-750.0,0.00031479,7]
[426436383,1782384641000,-750.0,0.00031479,7]
[426436372,1782384641000,-750.0,0.00031479,7]
[426436385,1782384641000,-750.0,0.00031479,7]
[426436370,1782384641000,-750.0,0.00031479,7]
[426436354,1782384641000,-750.0,0.00031479,7]
[426436362,1782384641000,-750.0,0.00031479,7]
[426436344,1782384641000,-579.0,0.00031108,4]
[426436346,1782384641000,-750.0,0.00031479,7]
[426436343,1782384641000,-1200772.0,0.0003104,20]
[426436347,1782384641000,-750.0,0.00031479,7]
[426436345,1782384641000,-179.22,0.000314,7]
[426436356,1782384641000,-750.0,0.00031479,7]
[426436353,1782384641000,-750.0,0.00031479,7]
[426436379,1782384641000,-750.0,0.00031479,7]
[426436359,1782384641000,-750.0,0.00031479,7]
[426436369,1782384641000,-750.0,0.00031479,7]
[426436358,1782384641000,-750.0,0.00031479,7]
[426436348,1782384641000,-750.0,0.00031479,7]
[426436350,1782384641000,-750.0,0.00031479,7]
[426436351,1782384641000,-750.0,0.00031479,7]
[426436349,1782384641000,-750.0,0.00031479,7]
[426436352,1782384641000,-750.0,0.00031479,7]
[426436357,1782384641000,-750.0,0.00031479,7]
[426436360,1782384641000,-750.0,0.00031479,7]
[426436363,1782384641000,-750.0,0.00031479,7]
[426436361,1782384641000,-750.0,0.00031479,7]
[426436355,1782384641000,-750.0,0.00031479,7]
[426436387,1782384641000,-750.0,0.00031479,7]
[426436374,1782384641000,-750.0,0.00031479,7]
[426436388,1782384641000,-750.0,0.00031479,7]
[426436425,1782384641000,-303.18310389,0.00033567,2]
[426436416,1782384641000,-383.0,0.00033458,2]
[426436414,1782384641000,-3562.0,0.00033458,2]
[426436424,1782384641000,-729.63483158,0.00033567,2]
[426436418,1782384641000,-216.0,0.00033458,2]
[426436417,1782384641000,-1230.0,0.00033458,2]
[426436419,1782384641000,-935.0,0.00033458,2]
[426436420,1782384641000,-300.0,0.00033567,2]
[426436421,1782384641000,-300.0,0.00033567,2]
[426436422,1782384641000,-494.94388681,0.00033567,2]
[426436423,1782384641000,-607.42547748,0.00033567,2]
[426436426,1782384641000,-300.0,0.00033567,2]
[426436427,1782384641000,-301.95372069,0.00033567,2]
[426436428,1782384641000,-300.0,0.00033567,2]
[426436430,1782384641000,-345.52149444,0.00033567,2]
[426436432,1782384641000,-300.0,0.00033567,2]
[426436429,1782384641000,-300.0,0.00033567,2]
[426436431,1782384641000,-529.28557893,0.00033567,2]
[426436389,1782384641000,-750.0,0.00031479,7]
[426436415,1782384641000,-1277.0,0.00033458,2]
[426436410,1782384641000,-9250.42574942,0.00032963,2]
[426436395,1782384641000,-151.72,0.000316,7]
[426436411,1782384641000,-150.0,0.00033123,120]
[426436413,1782384641000,-156.519471,0.00033377,120]
[426436393,1782384641000,-152.22,0.00031506,2]
[426436391,1782384641000,-659.0,0.00031479,7]
[426436397,1782384641000,-579.0,0.00031628,5]
[426436390,1782384641000,-750.0,0.00031479,7]
[426436394,1782384641000,-150.0,0.00031507,30]
[426436396,1782384641000,-300.0,0.000316,10]
[426436399,1782384641000,-1200772.0,0.00032,20]
[426436398,1782384641000,-497.58896629,0.00031913,2]
[426436407,1782384641000,-264675.67096649,0.0003296,20]
[426436392,1782384641000,-200.0,0.000315,10]
[426436404,1782384641000,-167.29556947,0.00032877,2]
[426436401,1782384641000,-150.0,0.00032421,2]
[426436403,1782384641000,-200.0,0.00032872,2]
[426436405,1782384641000,-157.682815,0.00032877,120]
[426436400,1782384641000,-579.0,0.00032148,6]
[426436406,1782384641000,-151.72,0.000329,30]
[426436409,1782384641000,-87202.47177476,0.0003296,20]
[426436402,1782384641000,-579.0,0.00032668,6]
[426436412,1782384641000,-579.0,0.00033188,7]
[426436408,1782384641000,-848893.85725875,0.0003296,20]
[426436444,1782384642000,-306.71345192,0.00033567,2]
[426436442,1782384642000,-607.27302398,0.00033567,2]
[426436440,1782384642000,-453.95122882,0.00033567,2]
[426436454,1782384642000,-583.43550829,0.00033567,2]
[426436449,1782384642000,-311.01241424,0.00033567,2]
[426436451,1782384642000,-596.88317933,0.00033567,2]
[426436441,1782384642000,-445.78876109,0.00033567,2]
[426436443,1782384642000,-303.12150405,0.00033567,2]
[426436439,1782384642000,-584.20819687,0.00033567,2]
[426436433,1782384642000,-953.65268364,0.00033567,2]
[426436445,1782384642000,-301.8851531,0.00033567,2]
[426436448,1782384642000,-320.87086278,0.00033567,2]
[426436447,1782384642000,-345.43890405,0.00033567,2]
[426436437,1782384642000,-300.0,0.00033567,2]
[426436438,1782384642000,-513.60695689,0.00033567,2]
[426436435,1782384642000,-588.06698112,0.00033567,2]
[426436436,1782384642000,-596.88317933,0.00033567,2]
[426436455,1782384642000,-300.0,0.00033567,2]
[426436434,1782384642000,-1806.05475461,0.00033567,2]
[426436446,1782384642000,-300.0,0.00033567,2]
[426436450,1782384642000,-568.6267816,0.00033567,2]
[426436460,1782384642000,-5800.0,0.00033633,2]
[426436452,1782384642000,-300.0,0.00033567,2]
[426436496,1782384642000,-430.00745001,0.00028155,2]
[426436495,1782384642000,-2250.0000323,0.0003392,20]
[426436474,1782384642000,-294938.01699563,0.0003392,20]
[426436462,1782384642000,-5800.0,0.0003365,2]
[426436465,1782384642000,-250.0,0.00033676,7]
[426436459,1782384642000,-200.0,0.00033618,2]
[426436467,1782384642000,-166.809043,0.00033695,2]
[426436469,1782384642000,-25000.0,0.00033746,10]
[426436471,1782384642000,-25000.0,0.00033746,10]
[426436468,1782384642000,-579.0,0.00033708,7]
[426436464,1782384642000,-166.809043,0.00033668,2]
[426436463,1782384642000,-5800.0,0.00033658,2]
[426436458,1782384642000,-752.1678692,0.00033577,60]
[426436453,1782384642000,-513.47191187,0.00033567,2]
[426436457,1782384642000,-500.0,0.00033577,60]
[426436456,1782384642000,-853.907957,0.00033577,60]
[426436472,1782384642000,-155.671934,0.00033877,120]
[426436466,1782384642000,-166.809043,0.00033682,2]
[426436473,1782384642000,-422379.30891315,0.0003392,20]
[426436461,1782384642000,-5800.0,0.00033641,2]
[426436475,1782384642000,-935.71689276,0.0003392,20]
[426436497,1782384643000,-69.99254999,0.00028155,2]
[426436501,1782384643000,-500.0,0.00028155,2]
[426436502,1782384643000,-169.54745001,0.00029015,10]
[426436504,1782384643000,-0.99355503,0.00028155,2]
[426436500,1782384643000,-455.45254999,0.00028155,2]
[426436499,1782384643000,-44.54745001,0.00028155,2]
[426436498,1782384643000,-500.0,0.00028155,2]
[426436506,1782384650000,-308.21076559,0.00021458,2]
[426436507,1782384650000,-307.595,0.00021458,2]
[426436508,1782384650000,-1201.761,0.00021458,2]
[426436512,1782384694000,180.09,0.00029958,30]
[426436514,1782384712000,157.47,0.00029953,30]
[426436516,1782384760000,152.2,0.00029953,30]
[426436515,1782384760000,187.98,0.00029947,30]
[426436517,1782384761000,152.22,0.00031506,30]
[426436518,1782384780000,173.73,0.00031506,30]
[426436519,1782384784000,31410.28067896,0.00013967,2]
[426436521,1782384797000,879.67,0.0003114,120]
[426436520,1782384797000,879.67,0.0002768,120]
[426436522,1782384837000,157.48,0.00029952,30]
[426436523,1782384911000,152.2,0.00029952,30]
[426436524,1782384977000,152.2,0.00029952,30]
[426436536,1782385436000,165.73,0.000315,30]
[426436537,1782385485000,157.52613106,0.00031507,120]
[426436542,1782385752000,254.398915,0.00031192,30]
[426436553,1782385833000,-157.76224946,0.00013866,2]
[426436560,1782385833000,-364.154796,0.00013867,2]
[426436562,1782385833000,-1379.15588592,0.00013867,2]
[426436556,1782385833000,-500.0,0.00013866,2]
[426436555,1782385833000,-500.0,0.00013866,2]
[426436558,1782385833000,-500.0,0.00013866,2]
[426436557,1782385833000,-500.0,0.00013866,2]
[426436552,1782385833000,-236.04928457,0.00013866,2]
[426436544,1782385833000,-153.85,0.00013434,2]
[426436554,1782385833000,-500.0,0.00013866,2]
[426436550,1782385833000,-300.0,0.00013714,2]
[426436549,1782385833000,-139.03160099,0.00013714,2]
[426436548,1782385833000,-160.96839901,0.00013714,2]
[426436547,1782385833000,-300.0,0.00013714,2]
[426436546,1782385833000,-300.0,0.00013714,2]
[426436545,1782385833000,-200.0,0.00013699,2]
[426436561,1782385833000,-4288.35997369,0.00013867,2]
[426436551,1782385833000,-500.0,0.00013866,2]
[426436563,1782385833000,-7192.40718956,0.00013867,2]
[426436559,1782385833000,-500.0,0.00013866,2]
[426436569,1782385833000,-328.07007432,0.00013867,2]
[426436567,1782385833000,-4795.77029271,0.00013867,2]
[426436582,1782385833000,-7858.35083406,0.00013867,2]
[426436581,1782385833000,-1608.5869,0.00013867,2]
[426436580,1782385833000,-292.91733824,0.00013867,2]
[426436578,1782385833000,-271.17317545,0.00013867,2]
[426436577,1782385833000,-736.98305929,0.00013867,2]
[426436576,1782385833000,-13096.13658728,0.00013867,2]
[426436579,1782385833000,-829.98709775,0.00013867,2]
[426436574,1782385833000,-530.57794545,0.00013867,2]
[426436575,1782385833000,-1602.42724703,0.00013867,2]
[426436573,1782385833000,-773.1519251,0.00013867,2]
[426436571,1782385833000,-790.18371639,0.00013867,2]
[426436572,1782385833000,-5545.54787777,0.00013867,2]
[426436570,1782385833000,-931.70372915,0.00013867,2]
[426436564,1782385833000,-4622.1025695,0.00013867,2]
[426436565,1782385833000,-575.75,0.00013867,2]
[426436566,1782385833000,-2213.67945347,0.00013867,2]
[426436568,1782385833000,-1096.86532736,0.00013867,2]
[426436583,1782385833000,-632.43309411,0.00013867,2]
[426436593,1782385837000,-615.29519956,0.00013867,2]
[426436594,1782385837000,-5677.025558,0.00013867,2]
[426436598,1782385837000,-2500.0,0.00013967,2]
[426436597,1782385837000,-1424.527,0.0001395,2]
[426436596,1782385837000,-180.617,0.0001395,2]
[426436595,1782385837000,-476988.53064884,0.00013867,2]
[426436614,1782385838000,-500.0,0.00014778,2]
[426436610,1782385838000,-34436.25136767,0.000145,3]
[426436608,1782385838000,-364.154796,0.00014479,2]
[426436609,1782385838000,-435.3903455,0.00014494,2]
[426436606,1782385838000,-216.45114417,0.00014298,2]
[426436599,1782385838000,-364.154796,0.00013989,2]
[426436602,1782385838000,-996.49325095,0.00014066,5]
[426436604,1782385838000,-364.154796,0.00014234,2]
[426436605,1782385838000,-435.3903455,0.00014253,2]
[426436600,1782385838000,-250.0,0.00014,2]
[426436601,1782385838000,-435.39034553,0.00014012,2]
[426436615,1782385838000,-600.0,0.00014778,2]
[426436603,1782385838000,-364.154796,0.00014112,2]
[426436613,1782385838000,-435.3903455,0.00014735,2]
[426436607,1782385838000,-364.154796,0.00014356,2]
[426436616,1782385838000,-600.0,0.00014778,2]
[426436624,1782385838000,-300.0,0.00014999,2]
[426436628,1782385838000,-299.99,0.00015,2]
[426436625,1782385838000,-666.0,0.00014999,2]
[426436623,1782385838000,-435.3903455,0.00014977,2]
[426436629,1782385838000,-4967.83744476,0.00015,2]
[426436627,1782385838000,-1005.31361793,0.00015,2]
[426436620,1782385838000,-300.0,0.00014778,2]
[426436618,1782385838000,-600.0,0.00014778,2]
[426436626,1782385838000,-5160240.08056121,0.00015,2]
[426436621,1782385838000,-364.154796,0.00014846,2]
[426436619,1782385838000,-600.0,0.00014778,2]
[426436617,1782385838000,-600.0,0.00014778,2]
[426436612,1782385838000,-364.154796,0.00014723,2]
[426436611,1782385838000,-364.154796,0.00014601,2]
[426436622,1782385838000,-364.154796,0.00014968,2]
[426436663,1782385839000,-1308.81645654,0.00015,2]
[426436664,1782385840000,-907.68950824,0.00015,2]
[426436673,1782385842000,-342.82,0.00013867,2]
[426436674,1782385842000,-2147.57457912,0.00013867,2]
[426436672,1782385842000,-1370.52685329,0.00013867,2]
[426436677,1782385842000,-1708.24595,0.00015,2]
[426436675,1782385842000,-326.10006759,0.00013867,2]
[426436676,1782385842000,-17.00404473,0.00015,2]
[426436679,1782385843000,-982.07925712,0.00015,2]
[426436678,1782385843000,-5650.13359218,0.00015,2]
[426436684,1782385846000,-5589.66070692,0.0001385,2]
[426436685,1782385846000,-37208.59826824,0.00015,2]
[426436687,1782385846000,-1276.99,0.00015,2]
[426436686,1782385846000,-1175.57749676,0.00015,2]
[426436690,1782385864000,176.6,0.00029948,30]
[426436691,1782385865000,176.6,0.00031117,30]
[426436692,1782385912000,157.08,0.00029952,30]
[426436693,1782385919000,175.51,0.00029944,30]
[426436694,1782385920000,175.53,0.00031506,30]
[426436695,1782385930000,176.97,0.00029948,30]
[426436696,1782385931000,176.97,0.00030467,30]
[426436697,1782385932000,176.97,0.00030987,30]
[426436701,1782385969000,214.29155801,0.00026822,30]
[426436700,1782385969000,214.29155801,0.00026,30]
[426436702,1782385979000,346.49,0.00029951,30]
[426436705,1782385980000,346.49,0.00030988,30]
[426436704,1782385980000,176.85,0.00029948,30]
[426436703,1782385980000,346.49,0.00030469,30]
[426436706,1782386011000,176.73,0.00029947,30]
[426436707,1782386012000,167.87,0.00029951,30]
[426436708,1782386075000,500.0,0.00031246,30]
[426436709,1782386089000,176.97,0.00029947,30]
[426436710,1782386090000,170.01,0.00029951,30]
[426436711,1782386156000,153.28,0.0002995,30]
[426436713,1782386157000,176.93,0.00029947,30]
[426436712,1782386157000,153.28,0.00030533,30]
[426436715,1782386226000,176.84,0.00029947,30]
[426436716,1782386236000,162.36,0.00029948,30]
[426436717,1782386296000,176.8,0.00029946,30]
[426436718,1782386309000,165.83,0.00029947,30]
[426436719,1782386356000,176.89,0.00029945,30]
[426436720,1782386371000,176.91,0.00029944,30]
[426436721,1782386387000,159.56,0.00029946,30]
[426436722,1782386388000,176.8,0.00029944,30]
[426436723,1782386409000,158.86,0.00029944,30]
[426436724,1782386428000,160.96,0.00029944,30]
[426436725,1782386460000,176.92,0.00029943,30]
[426436729,1782386506000,161.83,0.00029943,30]
[426436732,1782386576000,160.52,0.00029942,30]
[426436733,1782386587000,160.66,0.00029941,30]
[426436734,1782386660000,160.76,0.0002994,30]
[426436735,1782386730000,161.3,0.0002994,30]
[426436736,1782386810000,160.91,0.00029939,30]
[426436737,1782386879000,160.76,0.00029938,30]
[426436738,1782386944000,160.92,0.00029938,30]
[426436764,1782387031000,-2500.0,0.00013667,2]
[426436762,1782387031000,-1218.5959307,0.00013667,2]
[426436757,1782387031000,-1199.50616929,0.00013667,2]
[426436766,1782387031000,-1455.18940624,0.00013681,2]
[426436768,1782387031000,-158.95132203,0.00013698,2]
[426436760,1782387031000,-323.93990001,0.00013667,2]
[426436755,1782387031000,-1315.8964,0.00013566,2]
[426436749,1782387031000,-527.8,0.00013463,2]
[426436752,1782387031000,-180.61719958,0.00013492,2]
[426436753,1782387031000,-1139.621,0.00013492,2]
[426436770,1782387031000,-197.26334103,0.00013699,2]
[426436794,1782387032000,-485.4185,0.0001418,2]
[426436791,1782387032000,-552.0,0.0001418,2]
[426436788,1782387032000,-150.0,0.00014134,2]
[426436790,1782387032000,-620.80770921,0.0001418,2]
[426436782,1782387032000,-1117.00594685,0.00013867,2]
[426436780,1782387032000,-3550.31260873,0.000138,2]
[426436777,1782387032000,-449.68739127,0.000138,2]
[426436775,1782387032000,-216.45114417,0.00013783,2]
[426436773,1782387032000,-2.73665897,0.00013699,2]
[426436792,1782387032000,-824.83,0.0001418,2]
[426436803,1782387032000,-286.72343418,0.00014396,2]
[426436796,1782387032000,-166.66,0.00014357,2]
[426436801,1782387032000,-595.56078731,0.00014396,2]
[426436802,1782387032000,-600.0,0.00014396,2]
[426436800,1782387032000,-4.43921269,0.00014396,2]
[426436799,1782387032000,-487.97856033,0.00014396,2]
[426436784,1782387032000,-253.22535315,0.00013867,2]
[426436797,1782387032000,-600.0,0.00014396,2]
[426436786,1782387032000,-166.66,0.00014061,2]
[426436793,1782387032000,-5533.0,0.0001418,2]
[426436795,1782387032000,-1983.94379079,0.0001418,2]
[426436798,1782387032000,-112.02143967,0.00014396,2]
[426436835,1782387038000,-300.0,0.00014396,2]
[426436844,1782387038000,-10000.0,0.000147,2]
[426436827,1782387038000,-788.3096142,0.00013667,2]
[426436841,1782387038000,-166.66,0.00014653,2]
[426436831,1782387038000,-150298.22964446,0.00013667,2]
[426436837,1782387038000,-300.0,0.00014396,2]
[426436829,1782387038000,-526.50344134,0.00013667,2]
[426436833,1782387038000,-313.27656582,0.00014396,2]
[426436839,1782387038000,-10000.0,0.0001445,2]
[426436846,1782387038000,-300.0,0.00014809,2]
[426436855,1782387038000,-50306.94636147,0.00014945,2]
[426436847,1782387038000,-300.0,0.00014809,2]
[426436851,1782387038000,-263.34368756,0.00014945,2]
[426436853,1782387038000,-8995.90069065,0.00014945,2]
[426436857,1782387038000,-403.94251993,0.00014945,2]
[426436859,1782387038000,-166.66,0.00014949,2]
[426436864,1782387038000,-4918340.18905043,0.00015,2]
[426436863,1782387038000,-450.93204089,0.0001499,8]
[426436861,1782387038000,-10000.0,0.0001499,2]
[426436849,1782387038000,-300.0,0.00014809,2]
[426436871,1782387040000,-651.0,0.00015,2]
[426436872,1782387040000,-14976.96952,0.00015,2]
[426436870,1782387040000,-28187.367892,0.00015,2]
[426436885,1782387043000,-183.34622177,0.00015,2]
[426436886,1782387043000,-9490.13270035,0.00015,2]
[426436884,1782387043000,-250.0,0.00014,2]
[426436888,1782387043000,-301.62025143,0.00015,2]
[426436887,1782387043000,-1672.95136239,0.00015,2]
[426436927,1782387046000,-11534.85236069,0.00015,2]
[426436928,1782387046000,-270.15,0.00015,2]
[426436933,1782387088000,163.89,0.00029934,30]
[426436932,1782387088000,171.39,0.00029936,30]
[426436931,1782387088000,158.35,0.00029936,30]
[426436935,1782387089000,171.39,0.00030878,30]
[426436934,1782387089000,158.35,0.00030721,30]
[426436936,1782387090000,158.35,0.00031506,30]
[426436937,1782387114000,169.7,0.00029933,30]
[426436938,1782387163000,178.17,0.00029936,30]
[426436939,1782387180000,175.51,0.00029933,30]
[426436940,1782387237000,174.79,0.00029935,30]
[426436941,1782387254000,169.7,0.00029933,30]
[426436942,1782387305000,173.09,0.00029935,30]
[426436943,1782387325000,174.78,0.00029935,30]
[426436944,1782387338000,175.91,0.00029934,30]
[426436945,1782387402000,175.35,0.00029934,30]
[426436946,1782387480000,174.22,0.00029934,30]
[426436947,1782387505000,175.91,0.00029933,30]
[426436948,1782387521000,174.23,0.00029933,30]
[426436950,1782387944000,172.42,9.429e-05,2]
[426436951,1782388092000,564.46923852,0.0002,120]
[426436952,1782388155000,-514.69,0.0001002,2]
[426436954,1782388155000,-514.69,0.00010086,2]
[426436953,1782388155000,-514.69,0.00010053,2]
[426436956,1782388155000,-514.69,0.00010152,2]
[426436955,1782388155000,-514.69,0.00010119,2]
[426436958,1782388155000,-514.69,0.00010218,2]
[426436960,1782388155000,-514.69,0.00010284,2]
[426436959,1782388155000,-514.69,0.00010251,2]
[426436961,1782388155000,-514.69,0.00010317,2]
[426436962,1782388155000,-247.00775,0.00010349,2]
[426436957,1782388155000,-514.69,0.00010185,2]
[426436963,1782388156000,311.64,9.602e-05,2]
[426436964,1782388157000,311.64,9.686e-05,2]
[426436965,1782388157000,311.64,9.769e-05,2]
[426436967,1782388157000,311.64,9.936e-05,2]